Cogmind - Beta 14 @@@ ROGUE MODE // 2024.08.07 @ 22:01:34 Player: Sionnis Result: Destroyed by Mutated Botcube with Improved Grenade Launcher Performance ------------- Evolutions (0) 0 Regions Visited (4) 800 Robots Destroyed (34) 170 Value Destroyed (891) 891 Prototype IDs (1) 20 Alien Tech Used (0) 0 Bonus (359) 359 TOTAL SCORE: 2240 Bonus ------- Follower Combat Kills 188 Registered with UFD 300 Friendly Fire -129 Cogmind --------- Core Integrity 0/250 Matter 270/300 Energy 100/100 System Corruption 0% Temperature Cool (0) Movement Flying (195) Ox2 Location -8/Scraptown Parts ------- > --- POWER (1) -------- (None) > --- PROPULSION (2) --- VTOL Module > --- UTILITY (2) ------ Medium Storage Unit Deep Structural Scanner > --- WEAPON (2) ------- (None) > --- INVENTORY (10) --- Light Nuclear Core Flight Unit Flight Unit Machine Analyzer Signal Interpreter Improved Light Armor Plating Hacking Suite Improved Datajack Large Botcube Peak State ------------ > --- POWER ------------ Light Nuclear Core > --- PROPULSION ------- VTOL Module VTOL Module > --- UTILITY ---------- Deep Structural Scanner Surveybot 17 Chip > --- WEAPON ----------- Mini Grenade Launcher Improved Datajack > --- INVENTORY -------- Flight Unit Signal Interpreter Hacking Suite Heavy Hammer Botcube [Rating: 24] Favorites ----------- Power Light Nuclear Core Engine Ion Engine Power Core Light Nuclear Core Propulsion Light Treads Treads Light Treads Flight Unit VTOL Module Utility Medium Storage Unit Device Deep Structural Scanner Storage Medium Storage Unit Processor Targeting Computer Protection Improved Light Armor Plating Weapon Improved Assault Rifle Energy Gun Medium Laser Energy Cannon Particle Cannon Ballistic Gun Improved Assault Rifle Launcher Mini Grenade Launcher Impact Weapon Heavy Hammer Special Melee Weapon Improved Datajack Build | -11 -10 -10 -8 -8 ------- Run | Yrd Mat Sub Rec Scr Slots Evolved . | . . . . . Power . | . . . . . Propulsion . | . . . . . Utility . | . . . . . Weapon . | . . . . . Parts Attached 37 | 7 10 1 4 15 Power 4 | 1 1 1 . 1 Engine 2 | 1 1 . . . Core 2 | . . 1 . 1 Reactor . | . . . . . Propulsion 6 | 2 1 . . 3 Treads 3 | 2 1 . . . Leg . | . . . . . Wheel . | . . . . . Hover . | . . . . . Flight 3 | . . . . 3 Utility 14 | 1 5 . 2 6 Device 3 | . 2 . . 1 Storage 4 | 1 1 . . 2 Processor 2 | . 1 . . 1 Hackware . | . . . . . Protection 5 | . 1 . 2 2 Artifact . | . . . . . Weapon 13 | 3 3 . 2 5 Energy Gun 1 | 1 . . . . Energy Cannon 1 | . 1 . . . Ballistic Gun 6 | 2 2 . 2 . Ballistic Cannon . | . . . . . Launcher 1 | . . . . 1 Special Weapon . | . . . . . Impact Weapon 1 | . . . . 1 Slashing Weapon . | . . . . . Piercing Weapon . | . . . . . Special Melee Weapon 3 | . . . . 3 Unidentified Prototypes 1 | . 1 . . . Parts Lost 5 | . . 1 . 4 Power 2 | . . 1 . 1 Propulsion 1 | . . . . 1 Utility . | . . . . . Weapon 2 | . . . . 2 Highest Loss Streak 2 | . . 1 . 2 To Critical Strikes . | . . . . . Average Slot Usage (%) 91 | . 96 97 100 86 Engine 4 | . 14 9 . . Core 6 | . . 2 14 8 Treads 13 | . 28 28 28 . Flight 14 | . . . . 26 Device 5 | . 6 . . 6 Storage 13 | . 14 14 14 13 Protection 7 | . 3 14 14 7 Ballistic Gun 12 | . 27 28 28 . Launcher 4 | . . . . 7 Special Melee Weapon 7 | . . . . 13 Peak Build Rating 24 | 6 12 14 16 24 Average Rating 13 | 4 11 12 14 15 On Entrance 9 | . 6 12 14 14 Naked Turns . | . . . . . Heaviest Build 34 | 14 34 34 34 34 Greatest Support 40 | 40 40 40 40 40 Greatest Overweight (x) 4 | . . . . 4 Average Overweight (x) . | . . . . 1 Largest Inventory Capacity 15 | 8 15 15 15 15 Average Capacity 11 | 6 13 15 15 10 Most Carried 15 | 3 15 15 15 15 Average Carried 10 | 2 9 15 14 9 Final Capacity 15 | 8 15 15 15 10 Final Carried 15 | 3 15 15 15 10 Class Distribution -------------------- 71% | Mutant 27% | Derelict-Mutant Dominant Class ---------------- Mutant | -10/Materials Mutant | -10/Subcaves Mutant | -8/Recycling Derelict-Mutant | -8/Scraptown Resources | -11 -10 -10 -8 -8 ----------- Run | Yrd Mat Sub Rec Scr Matter Collected 1018 | 225 406 146 76 165 Remotely . | . . . . . Salvage Created 1075 | . 510 213 213 139 Parts 71 | . 43 8 15 5 Haulers Intercepted 1 | . 1 . . . Recyclers Shooed 1 | . 1 . . . Parts Field Recycled . | . . . . . Retrieved Matter . | . . . . . Parts Self-Destructed 10 | . . 10 . . Prevented . | . . . . . Kills | -11 -10 -10 -8 -8 ------- Run | Yrd Mat Sub Rec Scr Combat Hostiles Destroyed 27 | . 13 6 4 4 Guns 23 | . 13 6 4 . AOE 4 | . . . . 4 Classes Destroyed 10 | . 5 1 1 3 Hauler 1 | . 1 . . . Operator 2 | . 2 . . . Turret 2 | . . 2 . . Watcher 2 | . 2 . . . Swarmer 10 | . 6 4 . . Grunt 11 | . 7 2 2 . Sentry 2 | . . . 2 . Bolteater 1 | . . . . 1 Explorer 2 | . . . . 2 Scrapper 1 | . . . . 1 Best Kill Streak 5 | . 5 4 2 4 Combat Bots Only 4 | . 3 4 2 4 Max Kills in Single Turn 1 | . 1 1 1 1 Gunslinging . | . . . . . Exploded 1 | . . . . 1 Melee . | . . . . . Uniques/NPCs Destroyed . | . . . . . Combat | -11 -10 -10 -8 -8 -------- Run | Yrd Mat Sub Rec Scr Hostile Shots Fired 128 | . 40 68 6 14 Missed 38 | . 11 23 1 3 Damage Taken 1190 | . 292 447 75 376 Core 272 | . 56 54 . 162 Absorbed by Shields . | . . . . . Core Remaining (%) 100 | 100 . . . . Volleys Fired 79 | . 46 21 6 6 Largest 2 | . 2 2 2 1 Hottest 46 | . 46 46 46 30 Shots Fired 152 | . 92 42 12 6 Gun 146 | . 92 42 12 . Cannon . | . . . . . Launcher 6 | . . . . 6 Special . | . . . . . Kinetic 146 | . 92 42 12 . Thermal . | . . . . . Explosive 6 | . . . . 6 Electromagnetic . | . . . . . Robot Hit Streak 24 | . 11 24 12 . Robot Miss Streak 5 | . 3 2 . 5 Penetration Max . | . . . . . Secondary Targets 2 | . . 2 . . Max Gunslinging Chain 1 | . . 1 . . Shots Hit Robots 102 | . 58 35 9 . Core Hits 50 | . 23 13 6 8 Critical Kills 1 | . . . 1 . Critical Parts Destroyed 2 | . 2 . . . Critical Strikes 3 | . 2 . 1 . Destroy 3 | . 2 . 1 . Melee Attacks 2 | . . . . 2 Impact 2 | . . . . 2 Slashing . | . . . . . Piercing . | . . . . . Sneak Attacks . | . . . . . Combat Hostiles . | . . . . . Follow-up Attacks . | . . . . . Damage Inflicted 1997 | . 921 539 128 409 Guns 1588 | . 921 539 128 . Cannons . | . . . . . Explosions 409 | . . . . 409 Melee . | . . . . . Ramming . | . . . . . Kinetic 1588 | . 921 539 128 . Thermal . | . . . . . Explosive 409 | . . . . 409 Electromagnetic . | . . . . . Impact . | . . . . . Slashing . | . . . . . Piercing . | . . . . . Highest Corruption . | . . . . . Average Corruption . | . . . . . Corruption Purged . | . . . . . Corruption Blocked . | . . . . . Overload Shots . | . . . . . Overflow Damage 8 | . . . . 8 Projectiles . | . . . . . Explosions 8 | . . . . 8 Melee . | . . . . . Knockbacks . | . . . . . Impact . | . . . . . Kinetic . | . . . . . Secondary . | . . . . . Self-Inflicted Damage 70 | . . . . 70 Shots 2 | . . . . 2 Rammed . | . . . . . Targets Rammed . | . . . . . Kicked . | . . . . . Crushed . | . . . . . Highest Temperature 8 | . . . 8 . Average Temperature 6 | . . . 6 . Received Heat Transfer 378 | . 102 249 27 . Siege Activations . | . . . . . Robots Corrupted . | . . . . . Combat Hostiles . | . . . . . Parts Fried . | . . . . . Impact Corruptions . | . . . . . Robots Melted . | . . . . . Combat Hostiles . | . . . . . Parts Melted . | . . . . . Heat Transferred . | . . . . . Parts Sabotaged . | . . . . . Parts Stolen . | . . . . . Parts Stripped . | . . . . . Power Chain Reactions . | . . . . . Alert | -11 -10 -10 -8 -8 ------- Run | Yrd Mat Sub Rec Scr Peak Influence 297 | . 297 . 191 . Initial 150 | . . . 150 . Average 134 | . 149 . 111 . Maximum Alert Level 1 | . 1 . . . Low Security (%) 78 | 100 68 . 100 . Level 1 21 | . 31 . . . Level 2 . | . . . . . Level 3 . | . . . . . Level 4 . | . . . . . Level 5 . | . . . . . High Security . | . . . . . Max Security . | . . . . . Squads Dispatched 3 | . 3 . . . Investigation 1 | . 1 . . . Extermination . | . . . . . Reinforcement 2 | . 2 . . . Assault . | . . . . . Garrison . | . . . . . Intercept . | . . . . . Searches Triggered . | . . . . . Construction Impeded . | . . . . . Haulers Reinforced . | . . . . . Active Scanning Responses . | . . . . . Cargo Convoy Interrupts . | . . . . . Stealth | -11 -10 -10 -8 -8 --------- Run | Yrd Mat Sub Rec Scr Distress Signals . | . . . . . Communications Jammed . | . . . . . Distress Signals . | . . . . . Times Spotted 50 | . 25 10 4 11 Peak Tracking Total 6 | . 4 6 2 6 Tactical Retreats 6 | . 3 3 . . Traps | -11 -10 -10 -8 -8 ------- Run | Yrd Mat Sub Rec Scr Traps Triggered 1 | . 1 . . . Indirectly . | . . . . . Trap Hack Attempts . | . . . . . Triggered . | . . . . . Disarmed . | . . . . . Reprogrammed . | . . . . . Reused . | . . . . . Traps Extracted . | . . . . . Installed . | . . . . . Triggered . | . . . . . Machines | -11 -10 -10 -8 -8 ---------- Run | Yrd Mat Sub Rec Scr Machines Disabled 10 | . 1 1 . 8 Max in Single Turn 1 | . 1 1 . 1 Machines Repaired . | . . . . . Machines Dismantled . | . . . . . Machines Sabotaged . | . . . . . Overloaded Fab Kills . | . . . . . Hacking | -11 -10 -10 -8 -8 --------- Run | Yrd Mat Sub Rec Scr Machines Accessed 9 | . 7 . 1 1 Terminals 7 | . 7 . . . Fabricators . | . . . . . Repair Stations . | . . . . . Recycling Units 1 | . . . 1 . Scanalyzers . | . . . . . Garrison Access . | . . . . . Total Hacks 50 | . 27 . 2 21 Successful 34 | . 12 . 1 21 Failed 16 | . 15 . 1 . Catastrophic . | . . . . . Database Lockouts . | . . . . . Manual 20 | . 20 . . . Terminals 27 | . 27 . . . Fabricators . | . . . . . Repair Stations . | . . . . . Recycling Units 2 | . . . 2 . Scanalyzers . | . . . . . Garrison Access . | . . . . . Terminal Hacks 25 | . 4 . . 21 Record 21 | . . . . 21 Robot Analysis 3 | . 3 . . . Hauler Manifests 1 | . 1 . . . Fabricator Hacks . | . . . . . Repair Station Hacks . | . . . . . Recycling Unit Hacks 1 | . . . 1 . Retrieve Components 1 | . . . 1 . Scanalyzer . | . . . . . Garrison Access Hacks . | . . . . . Unauthorized Hacks 8 | . 8 . . . Terminals 8 | . 8 . . . Botnet 2 | . 2 . . . Skim 6 | . 6 . . . Fabricators . | . . . . . Repair Stations . | . . . . . Recycling Units . | . . . . . Scanalyzers . | . . . . . Garrison Access . | . . . . . Data Cores Recovered . | . . . . . Used . | . . . . . Hacking Detections 8 | . 7 . 1 . Full Trace Events . | . . . . . Feedback Events . | . . . . . Feedback Blocked . | . . . . . Robot Schematics Acquired . | . . . . . Robots Built . | . . . . . Authchips . | . . . . . Time . | . . . . . Total Robot Build Rating . | . . . . . Part Schematics Acquired . | . . . . . Parts Built . | . . . . . Authchips . | . . . . . Time . | . . . . . Total Part Build Rating . | . . . . . Parts Repaired . | . . . . . Time . | . . . . . Parts Recycled . | . . . . . Recycled Matter . | . . . . . Retrieved Matter . | . . . . . Retrieved Components . | . . . . . Parts Scanalyzed . | . . . . . Part Schematics Acquired . | . . . . . Parts Damaged . | . . . . . Bothacking | -11 -10 -10 -8 -8 ------------ Run | Yrd Mat Sub Rec Scr Used RIF Installer . | . . . . . Robots Hacked . | . . . . . Non-combat . | . . . . . Combat . | . . . . . Robot Hacks Applied . | . . . . . Relay Couplers Released . | . . . . . Fabnet Peak Effective % . | . . . . . Robots Rewired . | . . . . . Allies Hacked . | . . . . . Hacks Repelled . | . . . . . Allies | -11 -10 -10 -8 -8 -------- Run | Yrd Mat Sub Rec Scr Total Allies 1 | . . . . 1 Largest Group 1 | . . . . 1 Highest-Rated Group 52 | . . . . 52 Highest-Rated Ally 52 | . . . . 52 Total Orders . | . . . . . Ally Attacks 11 | . . . . 11 Total Damage 1239 | . . . . 1239 Kills 7 | . . . . 7 Allies Corrupted . | . . . . . Allies Melted . | . . . . . Intel | -11 -10 -10 -8 -8 ------- Run | Yrd Mat Sub Rec Scr Robot Analysis Total 3 | . 3 . . . Derelict Logs Recovered . | . . . . . Drone Launches . | . . . . . Drone Recoveries . | . . . . . Exploration | -11 -10 -10 -8 -8 ------------- Run | Yrd Mat Sub Rec Scr Turns Passed 5197 | 73 1575 128 604 2817 Spaces Moved 3150 | 40 721 36 340 2013 Core 2 | 2 . . . . Treads 1187 | 38 721 36 340 52 Legs . | . . . . . Wheels . | . . . . . Hover . | . . . . . Flight 1961 | . . . . 1961 Fastest Speed 32 | 50 160 160 160 32 Average Speed 143 | 154 160 160 160 134 Slowest Speed 355 | 160 160 160 160 355 Overloaded Moves . | . . . . . Propulsion Burnouts . | . . . . . Robots Hopped . | . . . . . Cave-ins Triggered . | . . . . . Exploration Rate (%) 53 | 3 92 5 69 96 Regions Visited 4 Branch Regions 3 Pre-discovered Areas 7 | . 2 . . 5 Known Exits Taken 1 | . 1 . . . Unknown Exits Taken 3 | 1 . 1 1 . Scrap Searched 10 | . . . . 10 Spaces Dug . | . . . . . Terrain Destroyed 5 | . . . . 5 Melee . | . . . . . Projectile . | . . . . . AOE 5 | . . . . 5 Terrain Rammed . | . . . . . Walls Destroyed . | . . . . . Machines Disabled . | . . . . . Actions | -11 -10 -10 -8 -8 --------- Run | Yrd Mat Sub Rec Scr Total 3667 | 48 1052 66 389 2112 Wait 319 | . 250 7 32 30 Move 3146 | 39 720 35 339 2013 Hop . | . . . . . Pick Up 37 | 2 14 1 3 17 Fast Attach 22 | 6 5 1 1 9 Attach 3 | . 1 . . 2 Detach 3 | . 2 . . 1 Swap 12 | 1 4 . 3 4 Drop 44 | . 10 1 5 28 Fire 79 | . 46 21 6 6 Melee 2 | . . . . 2 Ram . | . . . . . Kick . | . . . . . Crush . | . . . . . Escape Stasis . | . . . . . Rewire . | . . . . . Trap . | . . . . . Miscellaneous . | . . . . . Route ------- -11/Scrapyard -10/Materials (discovered 5 exits: [*Mat x3] / [*Min] / *Sub) -10/Subcaves -8/Recycling (discovered 2 exits: Fac / *Scr) -8/Scraptown (discovered 2 exits: *Fac x2) History --------- Turn | Location | Event 11 | -11/Scrapyard | Discovered new exit (range 16) 74 | -11/Scrapyard | Entered Materials 157 | -10/Materials | Discovered new exit (range 16) 301 | -10/Materials | Build established: Mutant 393 | -10/Materials | Discovered new exit (range 9) 613 | -10/Materials | Discovered new exit (range 10) 1124 | -10/Materials | Discovered new exit (range 16) 1476 | -10/Materials | Loaded intel: 8 terminal locations 1549 | -10/Materials | Learned location of 1 exit from Recycling 1568 | -10/Materials | Identified exit to Subcaves 1575 | -10/Materials | Learned 2 Storage zone layouts 1603 | -10/Materials | Learned location of Subcaves (-10) 1649 | -10/Materials | Entered Subcaves 1656 | -10/Subcaves | Discovered new exit (range 14) 1777 | -10/Subcaves | Entered Recycling 1778 | -8/Recycling | Identified exit to Factory 2341 | -8/Recycling | Scanned before Scraplab entrance 2365 | -8/Recycling | Entered Scraplab 2378 | -8/Recycling | Discovered new exit (range 2) 2381 | -8/Recycling | Entered Scraptown 2584 | -8/Scraptown | Visited Comm Corps 2634 | -8/Scraptown | Visited Symbiants 2661 | -8/Scraptown | Visited TADAMA 2677 | -8/Scraptown | Visited Bundlers 3098 | -8/Scraptown | Discovered exit to Factory (range 7) 3237 | -8/Scraptown | Visited Cave Peace 3280 | -8/Scraptown | Visited Fellowship of the Rings 3305 | -8/Scraptown | Visited SPCMW 3333 | -8/Scraptown | Visited UFD Registry 3333 | -8/Scraptown | Registered with UFD as "Shadowchip" 3581 | -8/Scraptown | Visited Botcube Research 3589 | -8/Scraptown | Found Botcube 3619 | -8/Scraptown | Visited DA-N13 Charitable Foundation 3624 | -8/Scraptown | Found DCF Scrap (27 items) 3785 | -8/Scraptown | Visited Cartography Club 3822 | -8/Scraptown | Found Surveybot 17 Chip 3878 | -8/Scraptown | Learned location of Recycling (-8) 3878 | -8/Scraptown | Learned location of Extension (-6) 3878 | -8/Scraptown | Learned location of Archives (-6) 3878 | -8/Scraptown | Learned location of Quarantine (-2) 3878 | -8/Scraptown | Learned 8 Materials zone layouts 3878 | -8/Scraptown | Learned 12 Materials zone layouts 3878 | -8/Scraptown | Learned 8 Factory zone layouts 3878 | -8/Scraptown | Learned 16 Research zone layouts 3878 | -8/Scraptown | Learned 16 Lower Caves zone layouts 3878 | -8/Scraptown | Learned 20 Lower Caves zone layouts 3878 | -8/Scraptown | Learned 8 Upper Caves zone layouts 3878 | -8/Scraptown | Learned 12 Upper Caves zone layouts 3878 | -8/Scraptown | Learned 20 Proximity Caves zone layouts 3878 | -8/Scraptown | Learned 4 Armory zone layouts 3878 | -8/Scraptown | Learned location of 2 exits from Lower Caves 3878 | -8/Scraptown | Learned location of 3 exits from Factory 3881 | -8/Scraptown | Found Deep Structural Scanner 3919 | -8/Scraptown | Visited Supply Room 3978 | -8/Scraptown | Visited Scrap Suit Storage 4118 | -8/Scraptown | Visited LU-1G1's Boring Crew 4191 | -8/Scraptown | Build established: Derelict-Mutant 4257 | -8/Scraptown | Visited Research Penetration Think Tank 4303 | -8/Scraptown | Visited Scrapoid Research Area 4380 | -8/Scraptown | Visited Derelict Rescue Squad 4758 | -8/Scraptown | Discovered exit to Factory (range 12) 4940 | -8/Scraptown | Botcube activated 4964 | -8/Scraptown | Botcube completed mutation into treaded form, armed with 2 launchers. 5114 | -8/Scraptown | Attacked by Scraptown defenders 5129 | -8/Scraptown | Found Lrg. Botcube 5181 | -8/Scraptown | Core integrity fell below 50% 5194 | -8/Scraptown | Core integrity fell below 20% 5198 | -8/Scraptown | Destroyed by Mutated Botcube with Improved Grenade Launcher Last Messages --------------- Acquired 20 matter. The unstable cave ceiling collapses. Bolt penetrates Machine. Penetrated by Bolt. 7P-MDU(x) destroyed. Supplies damaged. Penetrated by Bolt. The unstable cave ceiling collapses. Penetrated by Bolt. K6-LNV(x) destroyed. Bolt penetrates UFD Mainframe. The unstable cave ceiling collapses. Penetrated by Bolt. Destroyed Imp. Light Armor Plating. Mni. Grenade Launcher destroyed. Destroyed Mni. Grenade Launcher. Bolt penetrates Machine. WW-B66(x) destroyed. Hvy. Hammer destroyed. Destroyed Hvy. Hammer. Map ----- +----------------------------------------------------+ | " "" "#???????????????????????????????????????? | | " " "#???????????????????????????????????????? | | " "#???????????????????????????????????????? | | "" """"""#????????????????????#################### | | #????????????????????#################### | | #???????????????????##################### | | #???????????????????##################### | | """"#####???????????????????####"""##"""##""|##"" | | !%"#???????????????????????####"" ##""!##""|##!! | | ""#???????????????????????####"" | | """#???????????????????????#### | | """#?????????????############################### | | """""#?????????????############################### | | ######?????????????############################### | | ???????????????????############################### | | ??########?????????####"""""""""################## | | ?# ##???????####"& "################## | | # """""" #???????####" &! ! "##############""" | | # "" "" #??????#####"" "" ""##############" " | | # " " #??????####### = ####** ## ###" | | # " " #??????#####"" [% ###]* ## ###"?" | | # " " #??????#####"" = ###*% ! % ### " | | # " " #??????#### " ###] /= ! ### " | | # "" "" #??????#### ###] = ### | | # """""" #??????#### = ###=! = ###"""" | | ?# ##??????##### @M ###### ########### | | ######### ####????#### % ### ########### | | #????####" """ """"""""""" | | #????####" % | | #????####" ! | | #????#### | | #????####" %! | | #### #???##### * | | ???# #???#"""" """""""""""""""""""" | | ???# #???#"""" """"""""""""""""""" | | ???# #???#"""" " ##### ############ | | ???# #???#"""" ""# ####### | | ???# #???#"""" "# X"###### | | #### ###?#"""" ""# "" "" ####### | | ""## ""#"#"""" h ""# "" "" X"###### | | "## """"#"""" ""# " " ####### | | "## ""#######" "" "" | | "## #########" "" "" | | "## #########" ""# " " ####### | | "## ""# "" "" ""###### | | "## ""# "" "" ####### | | "## ""# ""###### | | ## ""# ####### | | #### ""###### ############ | | """""""""""""""""""""" | +----------------------------------------------------+ Best States ------------- Heat Dissipation 25 Energy Generation 14 Energy Capacity 250 Matter Stores 300 Matter Capacity 300 Sight Range 16 Robot Scan Range 14 Terrain Scan Density 1210 Armor Coverage 150 Evasion (%) 63 Targeting Accuracy 5 Recoil Reduction 2 Item Schematics ----------------- None Robot Schematics ------------------ None Fabricated ------------ Nothing Alien Tech Used ----------------- None Achievements -------------- None Challenges ------------ None Game ------ Seed IntegratedQuantumNeutralizer Manual? 0 Play Time 00:27:08 Cumulative 551.2 hours Start 2024.08.07 @ 21:34:45 End 2024.08.07 @ 22:01:34 Sessions 1 Manual Loads 0 Difficulty Rogue Special Mode None Game No. 289 Rogue 289 Adventurer 0 Explorer 0 Win Type - Total 36 Types 22/2/4/3/1/1/1/1/1 Lore% 86 Gallery% 96 Achievement% 98 Wizard Run 0 Options --------- Layout 1 ASCII 0 Keyboard 0 Movement Numpad Keybinds 0 Fullscreen 1 Font 24/Smallcaps Map View 50x35 Zoom Use 0% Tactical HUD 1 Map Filters NONE Filters NONE Steam 1 RUN: bfacdc19-8d8a-42d4-8e4e-9265702fb3b0